bitfinex/quotes_ETHUSD_20241203
["timestamp","ask_amount","ask_price","bid_price","bid_amount"]
[1733218285558,3.02306893,3611.4,3610.4,0.80619539]
[1733218285764,3.02306893,3611.4,3610.6,2.76962]
[1733218286067,2.76841,3612.2,3610.4,0.02769539]
[1733218286068,3.02306893,3611.7,3611.0,0.7785]
[1733218286407,3.02306893,3611.7,3611.5,2.76892]
[1733218286559,0.55802524,3612.5,3611.6,2.76885]
[1733218286753,0.25821098,3612.4,3611.6,2.76885]
[1733218287056,3.02306893,3611.9,3611.6,2.76885]
[1733218287486,3.02306893,3611.9,3611.7,2.76876]
[1733218287702,3.02306893,3612.2,3611.8,2.7687]
[1733218289224,3.02306893,3612.2,3611.9,2.76862]
[1733218290099,3.02306893,3612.3,3611.8,2.76862]
[1733218291312,3.02306893,3612.3,3611.8,0.54999833]
[1733218291518,3.02306893,3612.0,3611.8,0.54999833]
[1733218292372,3.02306893,3612.0,3610.9,2.76939]
[1733218292585,3.02306893,3612.0,3610.7,0.27973154]
[1733218292586,3.02306893,3612.0,3611.6,2.76883]
[1733218292887,3.02306893,3612.0,3611.7,2.76877]
[1733218293791,3.02306893,3612.0,3611.7,3.33362865]
[1733218293990,3.02306893,3612.0,3611.8,2.76867]
[1733218294205,3.02306893,3612.0,3611.7,0.56485865]
[1733218294413,3.02306893,3612.0,3611.5,0.5598128]
[1733218294719,3.02306893,3612.0,3611.6,2.76882]
[1733218295012,3.02306893,3612.4,3611.6,0.41010328]
[1733218295241,3.02306893,3612.4,3611.5,0.5598128]
[1733218295420,3.02306893,3612.4,3611.6,2.76885]
[1733218295620,0.1572936,3612.9,3611.8,0.7864]
[1733218295819,0.1572936,3612.9,3611.6,0.02768223]
[1733218295820,0.1572936,3612.9,3612.7,3.5544]
[1733218296029,0.1572936,3612.9,3612.2,2.76834]
[1733218296343,0.1572936,3612.9,3612.3,0.276834]
[1733218296707,0.1572936,3612.9,3612.5,2.76816]
[1733218297251,0.1572936,3612.9,3611.7,0.02767596]
[1733218297252,0.1572936,3612.9,3611.5,3.0]
[1733218297405,0.1572936,3612.9,3612.3,2.7683]
[1733218297838,0.1572936,3612.9,3612.5,2.76815]
[1733218298042,0.1572936,3612.9,3611.9,0.02767728]
[1733218298247,0.1572936,3612.9,3612.5,2.76809]
[1733218299255,0.1572936,3612.9,3612.8,0.56580872]
[1733218299454,0.5591936,3612.9,3612.1,0.8257]
[1733218299609,0.5591936,3612.9,3612.3,0.56004477]
[1733218299941,0.5591936,3612.9,3612.2,0.02768028]
[1733218300354,0.5591936,3612.9,3611.8,0.8257]
[1733218300645,0.5591936,3612.9,3612.0,0.56154118]
[1733218300843,0.5591936,3612.9,3612.1,0.02768042]
[1733218301006,0.5591936,3612.9,3612.0,3.33008118]
[1733218301407,0.5591936,3612.9,3612.0,0.56154118]
[1733218302138,0.5591936,3612.9,3612.1,0.02768045]
[1733218302334,0.1572936,3612.9,3612.2,0.8145]
[1733218302873,0.1572936,3612.9,3612.3,0.02767603]
[1733218303030,0.1572936,3612.9,3612.6,3.52238]
[1733218303461,0.1572936,3612.9,3612.6,0.7543]
[1733218303667,0.1572936,3612.9,3612.7,2.79567599]
[1733218304165,0.1572936,3612.9,3612.6,1.31534439]
[1733218304571,0.1572936,3612.9,3612.6,4.08339439]
[1733218304771,0.1572936,3612.9,3612.7,3.20678303]
[1733218305171,0.1572936,3612.9,3612.7,0.41110704]
[1733218305977,0.1572936,3612.9,3612.1,0.7902]
[1733218306150,0.1572936,3612.9,3612.2,2.76838]
[1733218306976,0.1572936,3612.9,3612.3,2.76831]
[1733218307476,0.1572936,3612.9,3612.4,0.54469791]
[1733218307843,3.02306893,3612.5,3612.4,0.54469791]
[1733218308841,3.02306893,3612.5,3612.4,3.31293791]
[1733218309064,3.02306893,3612.5,3612.4,3.7232517]
[1733218309736,3.18036253,3612.9,3612.6,2.76802]
[1733218309936,3.18036253,3612.9,3612.7,2.76799]
[1733218311069,3.18036253,3612.9,3612.5,2.79580792]
[1733218311278,3.18036253,3612.9,3612.4,0.98268963]
[1733218311583,3.18036253,3612.9,3612.5,0.37510196]
[1733218311950,3.18036253,3612.9,3612.7,2.76796]
[1733218312152,3.18036253,3612.9,3612.8,2.76793]
[1733218312586,0.1572936,3612.9,3612.8,2.76793]
[1733218312789,0.4019,3614.6,3613.8,2.76717]
[1733218313083,3.02306893,3614.3,3613.8,3.58727]
[1733218313245,3.02306893,3614.1,3613.8,3.58727]
[1733218314565,0.4019,3614.6,3613.8,4.13179866]
[1733218314854,3.02306893,3614.1,3613.8,4.82171153]
[1733218316661,3.02306893,3614.1,3613.8,4.00161153]
[1733218320697,3.02306893,3614.7,3613.8,7.84117948]
[1733218320864,3.02306893,3614.7,3613.8,7.81351153]
[1733218321066,3.02306893,3615.1,3613.8,7.81351153]
[1733218322276,1e-05,3613.9,3613.8,7.81351153]
[1733218333626,1e-05,3613.9,3613.8,7.00161153]
[1733218334422,1e-05,3613.9,3613.8,7.77541153]
[1733218336492,1e-05,3613.9,3613.8,7.00161153]
[1733218337197,1e-05,3613.9,3613.8,1.23444153]
[1733218337727,1e-05,3613.9,3613.8,3.33936445]
[1733218338607,1e-05,3613.9,3613.8,6.33936445]
[1733218338807,1e-05,3613.9,3613.8,6.31169866]
[1733218339007,1e-05,3613.9,3613.8,7.09389866]
[1733218347046,1e-05,3613.9,3613.8,7.29389544]
[1733218347205,3.42496893,3615.3,3613.8,7.29389544]
[1733218347206,0.4019,3615.3,3614.6,0.8179]
[1733218347546,0.4019,3615.3,3615.2,2.76609]
[1733218347708,0.66049472,3615.3,3615.2,2.76609]
[1733218347917,0.4019,3615.3,3615.2,2.76609]
[1733218348232,0.4019,3615.3,3615.0,2.76624]
[1733218348429,0.4019,3615.3,3615.1,2.76617]
[1733218348742,0.55,3615.2,3615.1,2.76617]
[1733218348948,0.55,3615.2,3614.9,2.76626]
[1733218349242,0.55,3615.2,3614.7,2.76648]
[1733218349446,0.55,3615.2,3615.1,0.56091846]
[1733218349653,3.57306893,3615.2,3614.6,0.04716883]
[1733218349963,3.57306893,3615.2,3614.8,2.76637]
[1733218350159,0.4019,3615.1,3614.6,0.04716883]
[1733218350333,3.97496893,3614.7,3614.6,0.04716883]
[1733218361134,3.97496893,3614.7,3613.6,2.76728]
[1733218361135,0.9519,3614.6,3614.1,2.7669]
[1733218361365,0.9519,3614.6,3614.2,2.76679]
[1733218361752,0.9519,3614.6,3614.1,0.58149178]
[1733218361955,0.9519,3614.6,3614.3,2.76677]
[1733218363509,0.9519,3614.6,3614.1,3.32073774]
[1733218363847,0.9519,3614.6,3614.1,0.55382774]
[1733218364096,0.55,3614.2,3614.1,0.55382774]
[1733218364590,0.9519,3614.2,3614.1,0.55382774]
[1733218365382,0.9519,3614.2,3613.5,3.36660758]
[1733218365568,0.55,3613.7,3613.6,2.76731]
[1733218366795,0.55,3613.7,3613.5,0.05531435]
[1733218367592,0.55,3613.7,3613.5,2.82269435]
[1733218368601,3.02306893,3613.6,3612.8,2.76786]
[1733218368900,0.4138053,3614.4,3612.7,2.76801]
[1733218368901,0.55,3612.8,3612.7,2.76801]
[1733218370156,0.55,3612.8,3612.7,3.31032184]
[1733218370418,0.55,3612.8,3612.7,2.76801]
[1733218370609,0.9519,3612.8,3612.5,3.31771925]
[1733218370776,0.9519,3612.8,3612.3,2.76831]
[1733218370976,0.9519,3612.8,3612.4,2.76822]
[1733218371599,0.9519,3612.8,3612.3,0.5672973]
[1733218372076,0.9519,3612.8,3612.3,3.3355473]
[1733218373103,0.9519,3612.8,3612.1,2.76846]
[1733218373300,0.55,3612.3,3611.9,3.52291]
[1733218373497,2.76775,3613.1,3611.9,3.52291]
[1733218373498,3.57306893,3612.0,3611.9,3.52292]
[1733218374289,3.57306893,3612.0,3611.9,2.76862]
[1733218374737,3.57306893,3612.0,3611.7,3.876914]
[1733218374738,0.55,3611.9,3611.7,3.876914]
[1733218374882,0.55,3611.9,3611.8,2.7687]
[1733218376718,0.55,3611.9,3611.7,0.54337706]
[1733218376885,0.55,3611.9,3611.7,3.31213706]
[1733218377510,0.55,3611.7,3611.5,2.76891]
[1733218377718,3.57306893,3611.6,3611.5,2.76891]
[1733218378128,3.57306893,3611.6,3611.3,2.76906]
[1733218378129,0.55,3611.5,3611.3,2.76906]
[1733218378332,3.02306893,3611.2,3611.1,2.76916]
[1733218378688,3.57306893,3611.2,3611.1,2.76916]
[1733218378994,3.57306893,3611.2,3610.9,2.76937]
[1733218379191,3.57306893,3611.2,3611.1,0.54581522]
[1733218379903,3.57306893,3611.2,3610.9,0.55889262]
[1733218379904,0.55,3611.1,3610.9,0.55889262]
[1733218380232,0.55,3611.1,3610.5,0.02138125]
[1733218380233,0.55,3610.7,3610.5,0.02138125]
[1733218380400,0.9519,3610.6,3610.5,0.02138125]
[1733218381619,0.9519,3610.6,3610.5,2.79107125]
[1733218382338,0.9519,3610.6,3610.5,0.02138125]
[1733218383096,3.97496893,3610.6,3610.5,0.02138125]
[1733218383425,0.55,3610.5,3610.1,2.76999]
[1733218383741,3.02306893,3610.8,3609.8,2.77016]
[1733218383742,0.55,3610.1,3609.8,2.77016]
[1733218383912,3.57306893,3609.9,3609.6,2.77038]
[1733218384112,3.02306893,3609.5,3609.4,2.77054]
[1733218384321,3.02306893,3609.5,3609.4,3.405458]
[1733218385250,3.02306893,3609.5,3609.4,6.405458]
[1733218385946,3.02306893,3609.5,3609.4,6.96158483]
[1733218387168,3.57306893,3609.9,3609.8,2.77023]
[1733218388650,3.57306893,3609.9,3609.6,2.77038]
[1733218388955,3.57306893,3609.9,3609.7,2.7703]
[1733218389125,3.57306893,3609.8,3609.7,2.7703]
[1733218390010,3.02306893,3609.8,3609.7,2.7703]
[1733218392210,0.4019,3610.4,3610.1,2.77]
[1733218392211,3.02306893,3610.2,3610.1,2.77]
[1733218392411,3.02306893,3610.2,3610.1,3.5401]
[1733218392835,5.79166893,3612.0,3610.1,3.5401]
[1733218392836,3.02306893,3610.6,3610.2,2.76992]
[1733218393048,3.02306893,3610.6,3610.5,2.76969]
[1733218393411,3.02306893,3610.6,3610.5,2.79738395]
[1733218393607,3.02306893,3610.6,3610.5,3.20910356]
[1733218393814,3.02306893,3610.6,3610.5,3.18140961]
[1733218394258,3.02306893,3610.6,3610.5,6.95150961]
[1733218398944,0.4019,3611.6,3610.5,6.95150961]
[1733218399144,0.4019,3611.6,3610.8,3.8211]
[1733218399145,3.02306893,3611.6,3610.8,3.8211]
[1733218399353,3.02306893,3611.6,3611.5,2.76893]
[1733218401073,0.4019,3611.5,3611.1,2.76916]
[1733218401275,0.4019,3611.5,3610.1,0.54550646]
[1733218401276,3.02306893,3611.2,3610.7,2.76948]
[1733218401485,3.02306893,3610.8,3610.7,2.76948]
[1733218402348,3.02306893,3610.8,3610.6,0.54225917]
[1733218403175,0.4019,3610.7,3610.6,0.54225917]
[1733218403379,0.4019,3610.7,3609.7,0.04418512]
[1733218403548,3.02306893,3610.1,3610.0,2.77008]
[1733218405349,3.02306893,3610.5,3610.4,2.76977]
[1733218406560,3.02306893,3610.9,3610.8,2.76946]
[1733218406785,3.02306893,3610.9,3610.8,2.79715159]
[1733218406986,3.02306893,3610.9,3610.8,3.32614416]
[1733218411013,3.02306893,3611.3,3611.2,2.76916]
[1733218413107,3.02306893,3611.3,3611.0,2.76924]
[1733218413469,3.02306893,3611.3,3611.1,2.76922]
[1733218414167,0.4019,3611.2,3610.4,6.31205821]
[1733218414367,3.02306893,3610.9,3610.5,0.70936582]
[1733218414575,3.02306893,3610.9,3610.5,2.76968]
[1733218414983,3.02306893,3610.9,3609.9,0.7534]
[1733218415209,3.02306893,3610.9,3610.8,2.76946]
[1733218416116,0.4019,3611.2,3611.1,2.76923]
[1733218416612,0.4019,3611.2,3610.9,2.76937]
[1733218417368,0.4019,3611.2,3611.1,2.76923]
[1733218417769,0.4019,3611.2,3610.5,0.7534]
[1733218418078,3.02306893,3610.9,3610.1,0.8085]
[1733218418287,3.02306893,3610.9,3610.2,3.54717059]
[1733218418490,0.4019,3610.8,3610.5,2.76963]
[1733218419245,0.4019,3610.8,3610.6,2.76962]
[1733218419575,0.4019,3610.8,3610.7,2.76954]
[1733218421227,0.4019,3610.8,3610.5,2.76963]
[1733218421384,0.4019,3610.8,3610.6,2.76958]
[1733218421783,3.02306893,3610.9,3610.8,2.76946]
[1733218422083,3.02306893,3610.9,3610.3,3.59075]
[1733218422297,3.02306893,3610.9,3610.4,0.41379206]
[1733218422502,3.02306893,3610.9,3610.7,2.76954]
[1733218425391,3.02306893,3610.9,3610.7,2.73622283]
[1733218426877,3.42496893,3611.6,3611.2,2.76916]
[1733218427085,0.25846022,3611.5,3611.2,2.76916]
[1733218427250,3.42496893,3611.6,3611.2,2.76916]
[1733218428083,3.42496893,3611.6,3611.3,2.76905]
[1733218428383,3.02306893,3611.6,3611.5,2.76893]
[1733218428549,3.02306893,3611.6,3611.3,2.76908]
[1733218430392,3.02306893,3611.6,3611.1,2.76918]
[1733218430624,0.4019,3611.5,3610.7,3.0]
[1733218430895,0.4019,3611.5,3611.2,2.76912]
[1733218431401,3.02306893,3611.6,3611.4,2.769]
[1733218431698,0.2585612,3611.5,3611.4,2.769]
[1733218432004,3.02306893,3611.6,3611.4,2.769]
[1733218433599,3.02306893,3611.6,3611.2,2.76916]
[1733218433799,3.02306893,3611.6,3610.8,2.76946]
[1733218433971,0.25857303,3611.5,3611.0,2.76924]
[1733218434177,0.25857652,3611.5,3611.1,2.76923]
[1733218434572,3.02306893,3611.6,3611.1,2.76923]
[1733218435271,3.02306893,3611.6,3610.9,0.56454361]
[1733218435493,3.02306893,3611.6,3611.2,2.7691]
[1733218435694,0.4019,3611.7,3611.3,2.76906]
[1733218436011,0.25869544,3611.6,3611.3,2.76906]
[1733218436167,3.42496893,3611.7,3611.3,2.76906]
[1733218436365,0.25871229,3611.6,3611.3,2.76906]
[1733218436801,0.25869678,3611.6,3610.9,0.97766997]
[1733218436996,3.42496893,3611.7,3611.2,2.76915]
[1733218437323,0.25869676,3611.6,3611.2,2.76915]
[1733218438113,0.25869676,3611.6,3611.2,2.76909]
[1733218438475,3.42496893,3611.7,3611.0,0.02768991]
[1733218438675,3.02306893,3611.7,3611.5,2.76893]
[1733218439016,3.02306893,3611.7,3611.2,0.02768806]
[1733218439324,3.02306893,3611.7,3611.5,2.76885]
[1733218439884,3.02306893,3611.7,3611.6,2.76885]
[1733218440797,3.02306893,3611.7,3611.4,2.76898]
[1733218441889,3.02306893,3611.7,3611.5,2.76892]
[1733218442504,3.02306893,3611.7,3611.6,2.76885]
[1733218443118,3.02306893,3611.7,3611.4,2.76894]
[1733218443273,0.4019,3611.6,3611.2,2.76913]
[1733218443712,0.66059618,3611.6,3611.3,2.76902]
[1733218443924,0.66059618,3611.6,3611.0,2.79699988]
[1733218444123,0.66059618,3611.6,3611.1,0.33615435]
[1733218444281,0.25869618,3611.6,3611.2,0.02768919]
[1733218444478,3.02306893,3611.7,3611.2,0.02768919]
[1733218444802,3.02306893,3611.7,3611.6,2.76885]
[1733218445645,0.4019,3611.9,3611.4,0.02768736]
[1733218445845,0.4019,3611.9,3611.8,2.7687]
[1733218446155,0.25889404,3611.9,3611.8,2.7687]
[1733218446302,8.93,3612.9,3611.9,2.76862]
[1733218446303,0.25889404,3612.0,3611.9,2.76862]
[1733218446504,0.25890517,3612.2,3612.1,2.76847]
[1733218447367,3.42496893,3612.3,3612.2,2.76839]
[1733218447653,3.28185125,3612.3,3612.2,2.76839]
[1733218447808,3.02306893,3612.3,3612.2,2.76839]
[1733218449745,3.02306893,3612.3,3612.0,2.76852]
[1733218450148,0.4019,3612.2,3611.5,2.76889]
[1733218450350,0.4019,3612.2,3611.2,0.804]
[1733218450351,3.02306893,3611.9,3611.2,0.804]
[1733218450526,3.02306893,3611.9,3611.2,1.161339]
[1733218450730,3.02306893,3611.9,3611.6,2.76878]
[1733218450921,3.02306893,3611.9,3611.7,2.76875]
[1733218451121,3.02306893,3611.9,3611.8,2.7687]
[1733218451354,0.4019,3612.2,3611.9,2.76859]
[1733218451559,0.4019,3612.2,3611.6,2.76885]
[1733218451715,0.4019,3612.2,3612.0,2.76851]
[1733218451917,0.41393713,3613.0,3611.7,0.27965335]
[1733218451918,0.4019,3612.5,3611.9,2.76862]
[1733218452115,0.4019,3612.5,3612.4,2.76824]
[1733218452312,3.02306893,3612.6,3611.8,0.7607]
[1733218452313,3.02306893,3612.6,3612.5,2.76816]
[1733218452538,0.2587902,3612.6,3612.5,2.76816]
[1733218452741,0.2587902,3612.6,3612.5,3.321811]
[1733218453026,0.41393713,3613.1,3612.6,2.76808]
[1733218453027,0.2587902,3612.7,3612.6,2.76808]
[1733218453226,0.2587902,3613.0,3612.6,2.76808]
[1733218453432,0.2587902,3612.9,3612.6,2.76808]
[1733218453662,0.2587902,3612.8,3612.6,2.76802]
[1733218453861,3.02306893,3612.8,3612.6,2.76808]
[1733218454171,0.2587902,3612.7,3612.6,2.76808]
[1733218454973,0.25888351,3612.7,3612.3,2.7683]
[1733218455263,0.4019,3612.6,3612.1,2.76845]
[1733218455485,0.66078351,3612.6,3612.1,2.76845]
[1733218455631,0.66076968,3612.6,3612.1,2.76845]
[1733218455829,0.25886968,3612.5,3612.1,2.76845]
[1733218456028,3.02306893,3612.4,3612.0,3.31079882]
[1733218456230,0.25886968,3612.3,3611.8,2.76868]
[1733218456625,3.42496893,3612.0,3611.6,0.55729835]
[1733218456905,0.25886968,3611.9,3611.0,2.76931]
[1733218457076,3.02306893,3611.5,3611.1,2.76923]
[1733218457241,3.02306893,3611.5,3611.0,0.634443]
[1733218457242,0.4019,3611.4,3611.0,0.634443]
[1733218457430,0.4019,3611.4,3610.2,0.577006]
[1733218457431,0.4019,3611.4,3610.6,3.59378]
[1733218457773,0.4019,3611.4,3610.7,0.56328425]
[1733218457981,3.02306893,3611.1,3610.7,0.56328425]
[1733218458197,0.4019,3611.0,3610.2,2.76992]
[1733218458473,3.02306893,3610.7,3610.1,0.00161062]
[1733218458645,3.02306893,3610.7,3610.2,3.12950206]
[1733218458851,3.02306893,3610.7,3610.2,0.35959206]
[1733218459049,3.02306893,3610.7,3610.1,2.77160062]
[1733218459485,3.02306893,3610.3,3610.1,0.00161062]
[1733218459777,3.42496893,3610.3,3610.1,0.00161062]
[1733218459978,3.42496893,3610.3,3610.2,0.20718927]
[1733218460346,0.4019,3610.3,3610.2,0.20718927]
[1733218460545,0.4019,3610.3,3610.1,0.00161062]
[1733218460763,0.4019,3610.3,3610.2,0.20708521]
[1733218461568,0.4019,3610.3,3610.1,0.00161062]
[1733218462340,3.02306893,3610.6,3610.2,2.76992]
[1733218462889,3.02306893,3610.6,3610.3,2.76984]
[1733218463492,3.02306893,3610.6,3610.1,0.00161062]
[1733218463669,3.02306893,3610.6,3610.4,2.7697]
[1733218463976,3.02306893,3610.6,3610.5,2.97646847]
[1733218466106,3.02306893,3610.6,3610.5,0.20671341]
[1733218467350,3.42496893,3610.6,3610.5,0.20671341]
[1733218467702,3.42496893,3610.6,3610.1,0.56726224]
[1733218468427,3.42496893,3610.6,3610.1,0.00161062]
[1733218468735,3.42496893,3610.6,3610.3,2.76985]
[1733218469544,3.42496893,3610.6,3610.1,0.00161062]
[1733218469955,3.02306893,3610.6,3610.3,2.76978]
[1733218471562,3.02306893,3610.6,3610.5,2.76969]
[1733218473327,3.02306893,3611.0,3610.6,2.7696]
[1733218475114,3.02306893,3611.0,3610.5,2.76968]
[1733218478637,3.02306893,3611.0,3610.1,3.10570006]
[1733218478871,3.02306893,3611.0,3610.6,2.76961]
[1733218479231,3.02306893,3611.0,3610.7,2.76951]
[1733218479427,3.02306893,3611.0,3610.3,0.02769492]
[1733218479763,3.02306893,3611.4,3610.9,2.76934]
[1733218482329,3.02306893,3611.4,3610.5,0.7954]
[1733218482525,3.02306893,3611.4,3610.8,2.76946]
[1733218483758,3.02306893,3611.4,3610.6,2.76959]
[1733218483955,3.02306893,3611.0,3610.5,3.14922]
[1733218484131,3.02306893,3611.0,3610.5,2.76968]
[1733218484825,3.02306893,3611.0,3610.6,2.76958]
[1733218485567,3.02306893,3611.0,3610.7,2.76953]
[1733218486098,3.02306893,3611.4,3610.8,2.7694]
[1733218486377,0.25926285,3611.3,3610.4,2.79742397]
[1733218486681,0.25926285,3611.2,3610.8,2.76945]
[1733218486856,3.02306893,3611.4,3610.6,2.76956]
[1733218487042,0.2593066,3611.3,3610.7,0.56241734]
[1733218487241,3.02306893,3611.0,3610.7,0.56241734]
[1733218487780,3.02306893,3611.0,3610.6,2.76956]
[1733218489034,3.02306893,3611.0,3610.5,0.55531989]
[1733218489289,3.02306893,3611.4,3610.5,0.9987849]
[1733218489432,0.25936786,3611.3,3610.9,2.76936]
[1733218489639,0.25936786,3611.2,3611.1,2.76923]
[1733218489860,0.25936786,3611.4,3611.1,2.76923]
[1733218490042,0.25934934,3611.3,3611.2,2.76913]
[1733218490240,0.25934592,3611.7,3611.2,2.76913]
[1733218490441,3.83985949,3611.8,3610.9,0.02768962]
[1733218490442,0.25934592,3611.6,3610.9,0.02768962]
[1733218490749,0.25933029,3611.7,3611.4,2.76894]
[1733218490938,3.02306893,3611.8,3611.0,0.27971196]
[1733218491137,3.02306893,3611.8,3611.6,2.76879]
[1733218491373,3.02306893,3611.8,3611.0,0.27971196]
[1733218491374,3.02306893,3611.8,3611.4,0.8]
[1733218491575,0.4019,3612.1,3611.4,0.8]
[1733218491778,0.25922815,3612.0,3611.8,2.7687]
[1733218491954,0.25922815,3612.0,3611.4,0.8]
[1733218491955,0.25922815,3612.0,3611.9,2.76862]
[1733218492150,0.25921802,3612.1,3611.9,2.76862]
[1733218492769,3.02306893,3612.2,3612.0,2.76854]
[1733218492977,3.02306893,3612.6,3612.0,3.53864]
[1733218493279,0.2591154,3612.5,3612.1,0.02768173]
[1733218493486,3.02306893,3612.6,3612.2,2.76837]
[1733218494369,0.4019,3612.8,3612.3,2.76831]
[1733218494605,3.02306893,3613.0,3612.3,2.76831]
[1733218494606,0.2588078,3612.9,3612.3,2.76831]
[1733218494805,0.2588078,3612.9,3612.4,2.76821]
[1733218495010,3.02306893,3613.0,3612.0,0.7701]
[1733218495309,3.02306893,3613.0,3612.0,0.79777943]
[1733218495476,3.02306893,3613.0,3612.0,1.18122162]
[1733218495676,3.02306893,3613.0,3612.0,3.53862]
[1733218496065,0.25861703,3612.9,3612.1,2.76847]
[1733218496270,3.02306893,3613.0,3612.1,2.76846]
[1733218496500,0.25849099,3612.9,3612.0,0.7701]
[1733218496690,3.02306893,3613.0,3612.0,0.7701]
[1733218496981,3.02306893,3613.0,3611.5,2.76887]
[1733218496982,3.02306893,3612.2,3611.5,2.76892]
[1733218497203,3.02306893,3612.2,3610.8,2.76941]
[1733218497367,0.4019,3612.1,3611.1,1.1042122]
[1733218497694,0.4019,3612.1,3611.1,3.56847]
[1733218497895,0.4019,3612.1,3611.2,2.76912]
[1733218498413,3.02306893,3611.8,3611.2,2.76916]
[1733218498913,3.02306893,3611.8,3610.6,2.76959]
[1733218498914,3.42496893,3611.4,3610.6,2.76959]
[1733218499415,3.42496893,3611.4,3610.6,0.356889]
[1733218499594,3.42496893,3611.4,3610.5,0.7993]
[1733218499791,3.42496893,3611.4,3610.8,2.76946]
[1733218500342,3.42496893,3611.4,3611.0,2.76924]
[1733218500517,0.4019,3611.6,3610.6,0.02769237]
[1733218500814,0.4019,3611.6,3610.9,2.76938]
[1733218501017,0.4019,3611.6,3610.7,2.76953]
[1733218501167,3.02306893,3611.4,3610.7,3.45912391]
[1733218501369,3.02306893,3611.4,3610.5,1.35668913]
[1733218501609,3.02306893,3611.4,3610.6,0.02769239]
[1733218501815,3.02306893,3611.4,3610.6,0.02769031]
[1733218501974,3.02306893,3611.4,3611.0,2.76928]
[1733218502627,3.02306893,3611.4,3611.1,2.76923]
[1733218502879,3.02306893,3611.4,3610.8,0.02769033]
[1733218503165,0.4019,3611.6,3610.7,2.76954]
[1733218503166,0.4019,3611.6,3611.0,2.76924]
[1733218503862,0.4019,3611.6,3610.6,2.7696]
[1733218504172,3.02306893,3611.4,3610.9,2.76937]
[1733218505069,3.02306893,3611.4,3610.5,1.35668913]
[1733218505273,3.02306893,3611.8,3610.7,2.76954]
[1733218505564,3.02306893,3611.8,3611.1,2.76916]
[1733218505952,3.02306893,3611.8,3611.1,2.76918]
[1733218506147,3.02306893,3611.8,3610.5,1.35668913]
[1733218506148,3.02306893,3611.8,3611.2,0.02768914]
[1733218506451,3.02306893,3611.8,3611.2,2.7691]
[1733218506771,3.02306893,3611.8,3611.0,2.76928]
[1733218507142,0.4019,3611.7,3610.7,2.76947]
[1733218507338,3.02306893,3611.4,3610.7,2.76947]
[1733218507538,3.02306893,3611.4,3610.5,1.35668913]
[1733218507977,3.02306893,3611.4,3610.6,2.76957]
[1733218508175,3.02306893,3611.4,3610.5,1.35668913]
[1733218508675,3.02306893,3611.4,3610.6,2.7696]
[1733218508984,0.4019,3611.3,3610.3,2.76984]
[1733218509694,0.4019,3611.3,3610.4,2.76973]
[1733218509842,0.4019,3611.3,3610.2,2.76985]
[1733218510038,0.4019,3611.3,3610.3,2.76982]
[1733218510475,0.4019,3611.3,3610.4,2.76973]
[1733218511477,0.4019,3611.3,3610.4,2.76976]
[1733218511668,0.4019,3611.3,3610.5,2.76965]
[1733218512036,0.4019,3611.3,3610.2,0.93338506]
[1733218512037,0.4019,3611.3,3610.6,2.7696]
[1733218512663,0.4019,3611.3,3610.6,3.04933949]
[1733218513678,0.66076175,3611.3,3610.7,2.76953]
[1733218513981,0.66076363,3611.3,3610.1,0.55941488]
[1733218514183,0.4019,3610.9,3610.1,0.55941488]
[1733218514400,0.4019,3610.9,3610.1,0.00161062]
[1733218514680,2.76889,3611.6,3610.1,0.00161062]
[1733218514681,0.4019,3610.5,3610.1,0.00161062]
[1733218515877,0.4019,3610.9,3610.3,2.76984]
[1733218516043,0.66072548,3610.9,3610.4,2.76977]
[1733218516245,0.41413828,3611.3,3610.1,0.30924338]
[1733218516246,0.4019,3611.3,3610.1,0.30924338]
[1733218516758,0.4019,3611.3,3610.8,2.76942]
[1733218516965,0.4019,3611.3,3610.6,2.76959]
[1733218517555,0.66066818,3611.3,3610.7,2.76954]
[1733218518183,0.66066818,3611.3,3610.8,2.76945]
[1733218518413,0.41413828,3611.8,3611.3,0.7952]
[1733218518688,0.41413828,3613.2,3612.2,2.76838]
[1733218518994,0.41413828,3613.1,3612.3,1.23244878]
[1733218519156,0.4019,3613.3,3612.6,2.76804]
[1733218519490,0.4019,3613.3,3612.7,2.76798]
[1733218519992,0.4019,3613.3,3612.3,1.23244878]
[1733218520155,0.4019,3613.3,3612.4,0.40007688]
[1733218520350,0.4019,3613.3,3612.8,2.76792]
[1733218520659,0.4019,3613.3,3612.3,4.00069878]
[1733218520660,0.4019,3613.8,3613.2,0.55416301]
[1733218521072,0.4019,3613.8,3613.0,2.76777]
[1733218522672,0.4019,3613.8,3612.8,2.76792]
[1733218523086,3.81675098,3613.5,3612.6,3.3345995]
[1733218523299,3.81675098,3613.5,3612.7,2.76794]
[1733218523462,3.81675098,3613.5,3612.6,0.5665295]
[1733218523663,3.81675098,3613.5,3612.6,3.3345695]
[1733218524495,0.55,3613.7,3612.6,0.5665295]
[1733218524697,0.4019,3613.8,3613.0,2.76777]
[1733218524878,0.4019,3613.8,3612.6,0.90276736]
[1733218525092,0.4019,3613.8,3613.0,2.76772]
[1733218525264,0.4019,3613.8,3613.1,2.76769]
[1733218526303,0.4019,3613.8,3612.6,2.76804]
[1733218526694,0.4019,3613.8,3612.8,2.7679]
[1733218526859,0.4019,3613.4,3612.4,2.7682]
[1733218527690,0.4019,3613.4,3611.8,0.8005]
[1733218527899,0.4019,3613.4,3612.2,2.76839]
[1733218528062,0.4019,3613.4,3612.9,2.76778]
[1733218529781,0.4019,3613.4,3612.6,3.59183]
[1733218530002,0.4019,3613.4,3613.1,2.76769]
[1733218530408,0.4019,3613.4,3612.7,0.02767725]
[1733218530704,0.4019,3613.4,3612.6,0.8238]
[1733218531008,0.4019,3613.4,3612.6,2.76804]
[1733218531169,0.4019,3613.4,3612.3,2.76825]
[1733218531170,0.4019,3613.4,3612.7,2.768]
[1733218531719,0.4019,3613.4,3612.3,2.76825]
[1733218531896,0.4019,3613.4,3612.3,3.17858396]
[1733218532145,0.4019,3613.4,3612.7,2.76797]
[1733218533202,0.4019,3613.4,3612.6,2.76804]
[1733218533398,0.4019,3613.4,3612.3,2.76825]
[1733218533601,0.4019,3613.3,3612.3,2.76825]
[1733218533915,0.4019,3613.3,3613.0,0.00161062]
[1733218536372,0.4019,3613.7,3613.0,0.00161062]
[1733218537807,0.4019,3613.7,3613.2,2.76761]